bitfinex-derivatives/quotes_BTCF0:USTF0_20241110
["timestamp","ask_amount","ask_price","bid_price","bid_amount"]
[1731249960557,0.062948,79355.0,79352.0,0.062949]
[1731249961361,0.062948,79355.0,79344.0,0.02520669]
[1731249961362,0.3608,79358.0,79356.0,0.062946]
[1731249962053,0.3608,79358.0,79347.0,0.3608]
[1731249962256,0.3608,79358.0,79357.0,0.062946]
[1731249962857,0.3608,79358.0,79351.0,0.14356]
[1731249963072,0.3608,79358.0,79350.0,0.062951]
[1731249963253,0.3608,79351.0,79344.0,0.08816269]
[1731249963457,0.3608,79351.0,79344.0,0.02520669]
[1731249964156,0.423751,79351.0,79344.0,0.08816269]
[1731249964361,0.3608,79351.0,79349.0,0.062952]
[1731249964753,0.3608,79359.0,79356.0,0.062947]
[1731249964967,0.3608,79359.0,79344.0,0.02520669]
[1731249965259,0.3608,79351.0,79349.0,0.062952]
[1731249965851,0.3608,79351.0,79344.0,0.08816269]
[1731249966060,0.062954,79347.0,79344.0,0.02520669]
[1731249966258,0.12819635,79345.0,79344.0,0.02520669]
[1731249966764,0.12819635,79345.0,79335.0,0.00015989]
[1731249966765,0.062961,79338.0,79335.0,0.00015989]
[1731249966954,0.3608,79343.0,79335.0,0.00015989]
[1731249967154,0.3608,79343.0,79337.0,0.062962]
[1731249967363,0.3608,79343.0,79335.0,0.00015989]
[1731249967573,0.12819635,79357.0,79346.0,0.062955]
[1731249967757,0.06295,79352.0,79335.0,0.00015989]
[1731249968061,0.3608,79349.0,79343.0,0.062957]
[1731249968263,0.3608,79349.0,79335.0,0.00015989]
[1731249968568,0.3608,79349.0,79347.0,0.062953]
[1731249968769,0.3608,79349.0,79348.0,0.1828]
[1731249969661,0.3608,79349.0,79340.0,0.14356]
[1731249969855,0.3608,79349.0,79344.0,0.062956]
[1731249970459,0.3608,79349.0,79346.0,0.062955]
[1731249970874,0.062953,79348.0,79340.0,0.206519]
[1731249971068,0.062953,79348.0,79343.0,0.062957]
[1731249971571,0.062955,79346.0,79340.0,0.20652]
[1731249971767,0.062955,79346.0,79340.0,0.06296]
[1731249971972,0.3608,79341.0,79337.0,0.27097091]
[1731249972359,0.062961,79338.0,79337.0,0.02520891]
[1731249974369,0.062971,79325.0,79324.0,0.0018908]
[1731249974677,0.423771,79325.0,79324.0,0.0018908]
[1731249975065,0.784571,79325.0,79324.0,0.0018908]
[1731249975566,0.78471126,79325.0,79324.0,0.0018908]
[1731249975966,0.78471126,79325.0,79324.0,0.00112345]
[1731249976174,0.78471126,79325.0,79312.0,0.00145]
[1731249976175,0.06298,79314.0,79312.0,0.00145]
[1731249976363,0.3608,79313.0,79312.0,0.00145]
[1731249978393,0.3608,79313.0,79309.0,0.062984]
[1731249978574,0.3608,79313.0,79295.0,0.00014684]
[1731249978575,0.062994,79297.0,79295.0,0.00014684]
[1731249978871,0.3608,79303.0,79295.0,0.36094684]
[1731249979065,0.3608,79296.0,79295.0,0.00014684]
[1731249979266,0.3608,79303.0,79298.0,0.062993]
[1731249980272,0.3608,79303.0,79299.0,0.062992]
[1731249980670,0.3608,79303.0,79295.0,0.00014684]
[1731249980671,0.423789,79303.0,79295.0,0.00014684]
[1731249980877,0.3608,79303.0,79295.0,0.00014684]
[1731249981074,0.3608,79303.0,79300.0,0.062991]
[1731249981576,0.423789,79303.0,79300.0,0.062991]
[1731249982080,0.06299,79302.0,79295.0,0.00014684]
[1731249982268,0.062994,79297.0,79295.0,0.00014684]
[1731249982475,0.3608,79296.0,79295.0,0.00014684]
[1731249982777,0.062994,79297.0,79295.0,0.00014684]
[1731249983183,0.3608,79296.0,79295.0,0.00014684]
[1731249984363,0.42389038,79296.0,79295.0,0.00014684]
[1731249984568,0.42389038,79296.0,79288.0,0.00189185]
[1731249984569,0.063,79289.0,79288.0,0.00189185]
[1731249984778,0.55199635,79289.0,79288.0,0.00189185]
[1731249985176,0.4238,79289.0,79284.0,0.063004]
[1731249985886,0.3608,79289.0,79277.0,0.1742]
[1731249986073,0.3608,79284.0,79277.0,0.1742]
[1731249986280,0.3608,79293.0,79277.0,0.1742]
[1731249986475,0.063007,79281.0,79277.0,0.1742]
[1731249986676,0.063008,79279.0,79276.0,0.06301]
[1731249986975,0.063005,79283.0,79277.0,0.063009]
[1731249987177,0.063006,79281.0,79277.0,0.063009]
[1731249987483,0.3608,79285.0,79270.0,0.3608]
[1731249987675,0.3608,79285.0,79284.0,0.063004]
[1731249988579,0.063005,79283.0,79270.0,0.3608]
[1731249988781,0.063005,79283.0,79281.0,0.063006]
[1731249989173,0.3608,79285.0,79270.0,0.3608]
[1731249989380,0.063008,79279.0,79275.0,0.063011]
[1731249989774,0.063008,79279.0,79277.0,0.063009]
[1731249989974,0.063008,79279.0,79269.0,0.1904]
[1731249990180,0.3608,79285.0,79277.0,0.063009]
[1731249990482,0.063007,79281.0,79269.0,0.1904]
[1731249990681,0.3608,79288.0,79269.0,0.1904]
[1731249990989,0.3608,79288.0,79286.0,0.063002]
[1731249991282,0.3608,79288.0,79269.0,0.4904]
[1731249991283,9.638e-05,79296.0,79287.0,0.44629297]
[1731249991585,9.638e-05,79296.0,79295.0,0.3608]
[1731249994291,9.638e-05,79296.0,79295.0,0.50396]
[1731249994584,9.638e-05,79296.0,79295.0,0.68546]
[1731249995486,3.8e-07,79296.0,79295.0,1.49198781]
[1731249995675,0.1766,79319.0,79312.0,0.062982]
[1731249995880,0.062974,79322.0,79312.0,0.423782]
[1731249996092,0.48900781,79326.0,79312.0,0.423782]
[1731249996093,0.49000781,79326.0,79312.0,0.3608]
[1731249996392,0.062983,79311.0,79301.0,0.06299]
[1731249996595,0.12836085,79310.0,79308.0,0.3608]
[1731249996897,0.062984,79309.0,79308.0,0.3608]
[1731249998386,0.06299,79302.0,79296.0,0.14316]
[1731249998588,0.062991,79301.0,79296.0,0.062994]
[1731249999286,0.3608,79304.0,79290.0,0.062999]
[1731249999790,0.062997,79293.0,79290.0,0.062999]
[1731250000595,0.062998,79292.0,79289.0,0.36144]
[1731250000785,0.062995,79296.0,79289.0,0.4238]
[1731250001088,0.062989,79304.0,79289.0,0.3608]
[1731250001294,0.062999,79291.0,79289.0,0.3608]
[1731250001881,0.3608,79305.0,79276.0,0.3608]
[1731250001882,0.063007,79281.0,79276.0,0.3608]
[1731250002496,0.063007,79281.0,79278.0,0.063008]
[1731250002680,0.063001,79288.0,79276.0,0.3608]
[1731250002888,0.14316,79302.0,79287.0,0.3608]
[1731250003087,0.12820781,79303.0,79287.0,0.3608]
[1731250003088,0.062995,79296.0,79291.0,0.062998]
[1731250003392,0.50396,79305.0,79284.0,0.3608]
[1731250003393,0.02522059,79295.0,79284.0,0.3608]
[1731250003588,0.19119581,79304.0,79293.0,0.062996]
[1731250003785,0.54734001,79309.0,79298.0,0.3608]
[1731250003987,0.06299,79302.0,79297.0,0.062993]
[1731250004184,0.06299,79302.0,79298.0,0.3608]
[1731250004987,0.5463,79309.0,79301.0,0.062991]
[1731250005187,0.062955,79346.0,79304.0,0.062988]
[1731250005188,0.062983,79311.0,79304.0,0.062988]
[1731250005388,0.30060781,79322.0,79306.0,0.3608]
[1731250005593,0.062985,79308.0,79298.0,0.3608]
[1731250005791,0.062985,79308.0,79303.0,0.062989]
[1731250006293,0.3608,79316.0,79303.0,0.062989]
[1731250006294,0.062987,79306.0,79303.0,0.062989]
[1731250007395,0.062983,79311.0,79300.0,0.062991]
[1731250007592,0.12820781,79315.0,79304.0,0.062988]
[1731250007791,0.12820781,79315.0,79299.0,0.3608]
[1731250007792,0.062986,79307.0,79299.0,0.3608]
[1731250007993,0.062986,79307.0,79305.0,0.062987]
[1731250008585,0.062987,79306.0,79299.0,0.3608]
[1731250008991,0.02522059,79311.0,79301.0,0.06299]
[1731250008992,0.062988,79305.0,79301.0,0.06299]
[1731250009594,0.062991,79301.0,79299.0,0.3608]
[1731250011700,0.3608,79304.0,79282.0,0.3608]
[1731250012003,0.062999,79291.0,79289.0,0.063]
[1731250012598,0.062999,79291.0,79289.0,0.4238]
[1731250012798,0.062994,79297.0,79289.0,0.3608]
[1731250013095,0.062994,79297.0,79295.0,0.062995]
[1731250013698,0.062986,79307.0,79296.0,0.3608]
[1731250014002,0.062986,79307.0,79305.0,0.062987]
[1731250014500,0.062988,79304.0,79303.0,0.3608]
[1731250015400,0.38602059,79311.0,79300.0,0.062991]
[1731250015601,0.062989,79303.0,79300.0,0.062991]
[1731250015796,0.062985,79309.0,79298.0,0.3608]
[1731250016003,0.062985,79309.0,79308.0,0.062985]
[1731250016499,0.02522059,79311.0,79309.0,0.062984]
[1731250016813,0.062985,79309.0,79305.0,0.062987]
[1731250017303,0.062986,79307.0,79305.0,0.062987]
[1731250017800,0.02522059,79311.0,79308.0,0.062985]
[1731250017990,0.08820359,79311.0,79308.0,0.062985]
[1731250018192,0.02522059,79311.0,79302.0,0.062989]
[1731250018397,0.062985,79308.0,79301.0,0.3608]
[1731250019102,0.062985,79308.0,79307.0,0.062986]
[1731250019905,0.252477,79318.0,79308.0,0.062984]
[1731250020099,0.062972,79324.0,79308.0,0.062984]
[1731250020307,0.0873666,79327.0,79308.0,0.14845874]
[1731250020308,0.18279186,79327.0,79308.0,0.14845874]
[1731250020602,0.24576186,79327.0,79308.0,0.14845874]
[1731250020904,0.08547474,79315.0,79308.0,0.062984]
[1731250021106,0.06313604,79310.0,79308.0,0.062984]
[1731250021291,0.062986,79307.0,79305.0,0.3608]
[1731250022600,0.00015304,79310.0,79308.0,0.062985]
[1731250023000,0.00015304,79310.0,79305.0,0.3608]
[1731250023604,0.06313704,79310.0,79305.0,0.423787]
[1731250023803,0.00015304,79310.0,79305.0,0.423787]
[1731250024004,0.062984,79309.0,79305.0,0.423787]
[1731250024600,0.00015304,79310.0,79305.0,0.423787]
[1731250024902,0.062986,79307.0,79305.0,0.423787]
[1731250025899,0.062986,79307.0,79305.0,0.3608]
[1731250027010,0.00015304,79310.0,79307.0,0.062986]
[1731250027205,0.06313704,79310.0,79307.0,0.062986]
[1731250027404,0.00015304,79310.0,79308.0,0.062985]
[1731250028303,0.00015304,79310.0,79309.0,0.062984]
[1731250028498,0.00015304,79310.0,79309.0,0.14845874]
[1731250028699,0.062972,79324.0,79309.0,0.14845874]
[1731250028901,0.00189186,79327.0,79305.0,0.74539015]
[1731250028902,0.00189186,79327.0,79323.0,0.3608]
[1731250029215,0.062964,79335.0,79330.0,0.062967]
[1731250029405,0.062964,79335.0,79331.0,0.3608]
[1731250029706,9.091e-05,79332.0,79331.0,0.423767]
[1731250030009,0.062954,79348.0,79339.0,0.06296]
[1731250030208,0.062954,79347.0,79344.0,0.3608]
[1731250030405,0.062956,79346.0,79345.0,0.3608]
[1731250030707,0.00189097,79351.0,79345.0,0.3608]
[1731250031106,0.00189097,79351.0,79347.0,0.062954]
[1731250031308,0.00189097,79351.0,79345.0,0.3608]
[1731250031309,0.062952,79350.0,79345.0,0.3608]
[1731250031513,0.00189097,79351.0,79348.0,0.423752]
[1731250032907,0.00108,79350.0,79348.0,0.062952]
[1731250033304,0.03756744,79349.0,79348.0,0.062952]
[1731250033503,0.00108,79350.0,79348.0,0.062952]
[1731250038011,0.00108,79350.0,79347.0,0.36144]
[1731250038311,0.062957,79344.0,79339.0,0.06296]
[1731250039514,0.062965,79334.0,79329.0,0.00011001]
[1731250039907,0.441125,79334.0,79329.0,0.00011001]
[1731250040106,0.41366261,79333.0,79329.0,0.00011001]
[1731250040312,0.41366261,79333.0,79310.0,0.062983]
[1731250040313,0.062967,79331.0,79310.0,0.062983]
[1731250040507,0.56106,79333.0,79310.0,0.062983]
[1731250040508,0.08547474,79321.0,79310.0,0.062983]
[1731250040813,0.3608,79326.0,79310.0,0.062983]
[1731250041115,0.3608,79326.0,79309.0,0.1366]
[1731250041319,9.331e-05,79325.0,79309.0,0.1366]
[1731250041711,9.331e-05,79325.0,79311.0,0.08547474]
[1731250041915,9.331e-05,79325.0,79318.0,0.3608]
[1731250042212,0.062973,79323.0,79318.0,0.3608]
[1731250042415,9.331e-05,79325.0,79324.0,0.062972]
[1731250043313,9.331e-05,79325.0,79318.0,0.3608]
[1731250043622,0.062976,79320.0,79318.0,0.3608]
[1731250043823,0.062979,79316.0,79311.0,0.062982]
[1731250044412,0.36089331,79325.0,79307.0,0.08736586]
[1731250044413,0.062974,79322.0,79307.0,0.08736586]
[1731250044611,0.062974,79322.0,79316.0,0.062978]
[1731250044918,9.331e-05,79325.0,79323.0,0.062972]
[1731250045722,0.3608,79324.0,79311.0,0.3608]
[1731250046017,0.062977,79318.0,79315.0,0.062979]
[1731250046813,0.062977,79318.0,79316.0,0.062978]
[1731250048212,0.062972,79324.0,79316.0,0.062978]
[1731250048424,9.331e-05,79325.0,79316.0,0.062978]
[1731250048609,0.062973,79323.0,79316.0,0.062978]
[1731250049016,9.331e-05,79325.0,79316.0,0.062978]
[1731250049216,0.062976,79320.0,79316.0,0.062978]
[1731250049411,0.062976,79320.0,79319.0,0.3608]
[1731250049613,0.062979,79316.0,79311.0,0.3608]
[1731250049819,0.062979,79316.0,79311.0,0.423782]
[1731250050029,0.062979,79316.0,79312.0,0.062981]
[1731250050210,0.062979,79316.0,79313.0,0.062981]
[1731250050818,0.062979,79316.0,79311.0,0.3608]
[1731250050819,0.062979,79316.0,79314.0,0.06298]
[1731250053019,0.08547474,79315.0,79311.0,0.3608]
[1731250053224,0.08547474,79315.0,79311.0,0.423782]
[1731250053720,0.14845474,79315.0,79311.0,0.423782]
[1731250054131,0.062976,79320.0,79313.0,0.06298]
[1731250054419,0.08547474,79314.0,79310.0,0.3608]
[1731250054628,0.08547474,79314.0,79311.0,0.062982]
[1731250055013,0.062979,79316.0,79312.0,0.062981]
[1731250055213,0.08547474,79320.0,79310.0,0.3608]
[1731250055419,0.14844974,79320.0,79315.0,0.062979]
[1731250055625,0.08547474,79320.0,79307.0,0.36269112]
[1731250055928,0.062983,79311.0,79307.0,0.00189112]
[1731250056129,0.08547474,79314.0,79307.0,0.00189112]
[1731250056421,0.08547474,79314.0,79312.0,0.062982]
[1731250056623,0.06298,79315.0,79312.0,0.062982]
[1731250057026,0.062981,79313.0,79312.0,0.062982]
[1731250057215,0.08547474,79320.0,79307.0,0.00189112]
[1731250057524,0.062982,79313.0,79309.0,0.062984]
[1731250057720,0.062982,79313.0,79311.0,0.062982]
[1731250058026,0.062977,79319.0,79318.0,0.062977]
[1731250058425,9.331e-05,79325.0,79315.0,0.062979]
[1731250058620,0.08547474,79320.0,79307.0,0.00189112]
[1731250058819,0.062984,79309.0,79307.0,0.00189112]
[1731250061716,0.062984,79309.0,79289.0,0.1842]
[1731250061717,0.802064,79309.0,79295.0,0.00012905]
[1731250061924,0.062994,79296.0,79295.0,0.00012905]
[1731250063425,0.1898,79308.0,79295.0,0.00012905]
[1731250063426,0.1898,79308.0,79295.0,0.36092905]
[1731250063627,0.1094694,79318.0,79302.0,0.3608]
[1731250063827,0.3608,79314.0,79302.0,0.3608]
[1731250064128,0.06298,79315.0,79310.0,0.062983]
[1731250064631,0.13396,79320.0,79310.0,0.062983]
[1731250064632,0.08547474,79318.0,79310.0,0.062983]
[1731250064823,0.08547474,79318.0,79307.0,0.02521845]
[1731250065025,0.062982,79312.0,79307.0,0.02521845]
[1731250065627,0.08547474,79312.0,79307.0,0.02521845]
[1731250065824,0.062985,79309.0,79307.0,0.02521845]
[1731250066129,0.423785,79309.0,79307.0,0.02521845]
[1731250066331,0.062985,79309.0,79307.0,0.02521845]
[1731250066923,0.00138905,79308.0,79307.0,0.02521845]
[1731250068425,0.3608,79322.0,79307.0,0.02521845]
[1731250068624,9.331e-05,79325.0,79324.0,0.062972]
[1731250069126,0.36181,79355.0,79343.0,0.062957]
[1731250069127,0.00189118,79346.0,79343.0,0.062957]
[1731250069331,0.00189118,79346.0,79324.0,0.062972]
[1731250069332,0.062964,79335.0,79323.0,0.062972]
[1731250069533,0.17094948,79344.0,79320.0,0.3608]
[1731250069534,0.08547474,79328.0,79320.0,0.3608]
[1731250069926,0.06297,79327.0,79321.0,0.062974]
[1731250070940,0.08547474,79328.0,79326.0,0.06297]
[1731250071332,0.062967,79331.0,79326.0,0.06297]
[1731250071634,0.062967,79331.0,79328.0,0.3608]
[1731250072531,0.062968,79330.0,79327.0,0.062969]
[1731250073141,0.14844374,79329.0,79320.0,0.423775]
[1731250073326,0.062973,79324.0,79320.0,0.423775]
[1731250073725,0.08547474,79323.0,79315.0,0.062979]
[1731250073935,0.08547474,79316.0,79309.0,0.3608]
[1731250074936,0.08547474,79316.0,79314.0,0.06298]
[1731250077537,0.15721026,79333.0,79309.0,0.3608]
[1731250077538,0.08547474,79330.0,79312.0,0.14845674]
[1731250077740,0.08547474,79330.0,79328.0,0.062969]
[1731250078237,0.08547474,79330.0,79323.0,0.062973]
[1731250078543,0.062973,79323.0,79311.0,0.3608]
[1731250078745,0.08547474,79324.0,79311.0,0.3608]
[1731250078746,0.062976,79320.0,79311.0,0.3608]
[1731250078935,0.08547474,79317.0,79311.0,0.3608]
[1731250079535,0.08547474,79317.0,79312.0,0.062981]
[1731250079536,0.06298,79315.0,79312.0,0.062981]
[1731250080443,0.06298,79315.0,79313.0,0.062981]
[1731250081237,0.08547474,79317.0,79309.0,0.3608]
[1731250081444,0.062981,79313.0,79309.0,0.3608]
[1731250081636,0.08547474,79317.0,79309.0,0.3608]
[1731250081838,0.08547474,79317.0,79313.0,0.062981]
[1731250082230,0.08547474,79317.0,79309.0,0.3608]
[1731250082435,0.08547474,79310.0,79309.0,0.423784]
[1731250083335,0.08547474,79316.0,79315.0,0.062979]
[1731250084033,0.062968,79330.0,79327.0,0.062969]
[1731250084341,0.14843774,79336.0,79320.0,0.3608]
[1731250084547,0.062966,79332.0,79322.0,0.062974]
[1731250084841,0.08547474,79330.0,79321.0,0.1938]
[1731250085034,0.08547474,79324.0,79322.0,0.062974]
[1731250085237,0.14844774,79324.0,79322.0,0.062974]
[1731250085636,0.00189118,79346.0,79341.0,0.062959]
[1731250085835,0.00189118,79346.0,79343.0,0.062957]
[1731250085836,0.08736592,79346.0,79343.0,0.062957]
[1731250086548,0.08736592,79346.0,79339.0,0.1838]
[1731250086745,0.08736592,79346.0,79344.0,0.062956]
[1731250087134,0.08736592,79346.0,79345.0,0.3608]
[1731250091642,0.062956,79345.0,79338.0,0.423761]
[1731250091843,0.08547474,79339.0,79338.0,0.423761]
[1731250092547,0.06026837,79339.0,79338.0,0.3608]
[1731250092749,0.23966837,79339.0,79338.0,0.3608]
[1731250092948,0.062968,79329.0,79326.0,0.3608]
[1731250093147,0.97858837,79339.0,79326.0,0.3608]
[1731250093148,0.08547474,79327.0,79326.0,0.3608]
[1731250093656,0.062975,79321.0,79314.0,0.13084]
[1731250093842,0.08547474,79317.0,79313.0,0.062981]
[1731250094249,0.08547474,79323.0,79314.0,0.06298]
[1731250094853,0.062973,79324.0,79315.0,0.08819491]
[1731250095061,0.02398806,79332.0,79315.0,0.02521591]
[1731250095062,0.062974,79322.0,79315.0,0.02521591]
[1731250095355,0.062977,79318.0,79315.0,0.02521591]
[1731250096651,0.062977,79318.0,79315.0,0.05043182]
[1731250097644,0.08547474,79329.0,79318.0,0.062977]
[1731250097860,0.062974,79322.0,79318.0,0.062977]
[1731250098250,0.08547474,79322.0,79315.0,0.05043182]
[1731250098461,0.062976,79319.0,79315.0,0.05043182]
[1731250098753,0.08547474,79316.0,79315.0,0.05043182]
[1731250099055,0.062978,79317.0,79315.0,0.05043182]
[1731250099450,0.08547474,79322.0,79317.0,0.062978]
[1731250099649,0.14844874,79322.0,79317.0,0.062978]
[1731250099850,0.08547474,79322.0,79315.0,0.05043182]
[1731250100050,0.10835499,79330.0,79315.0,0.05043182]
[1731250100260,0.062972,79324.0,79320.0,0.062975]
[1731250100763,0.062972,79324.0,79322.0,0.062974]
[1731250100963,0.08547474,79330.0,79319.0,0.3608]
[1731250100964,0.062968,79329.0,79319.0,0.3608]
[1731250101259,0.02333655,79330.0,79322.0,0.08547474]
[1731250101446,0.062962,79337.0,79329.0,0.3608]
[1731250101649,0.5557,79345.0,79329.0,0.28989235]
[1731250101853,0.08547474,79342.0,79329.0,0.28989235]
[1731250102156,0.08547474,79330.0,79320.0,0.18734]
[1731250102356,0.08547474,79330.0,79322.0,0.062974]
[1731250102563,0.062974,79322.0,79315.0,0.07331909]
[1731250102859,0.08547474,79331.0,79319.0,0.062976]
[1731250103156,0.062978,79317.0,79315.0,0.05043182]
[1731250103358,0.03776368,79317.0,79315.0,0.05043182]
[1731250103854,0.03776368,79317.0,79303.0,0.49232]
[1731250103855,0.062985,79308.0,79303.0,0.00064]
[1731250104050,0.062988,79304.0,79303.0,0.00064]
[1731250104259,0.14846274,79304.0,79303.0,0.00064]
[1731250104460,0.062994,79296.0,79286.0,0.087102]
[1731250104659,0.15001221,79296.0,79286.0,0.087102]
[1731250104859,0.15001221,79296.0,79286.0,0.0241]
[1731250105062,0.15001221,79296.0,79295.0,0.00012905]
[1731250105866,0.52833221,79296.0,79295.0,0.00012905]
[1731250107660,0.61380695,79296.0,79295.0,1e-08]
[1731250107854,0.71683221,79296.0,79295.0,1e-08]
[1731250108655,0.8478042,79296.0,79295.0,1e-08]
[1731250108855,0.4694842,79296.0,79295.0,1e-08]
[1731250109052,0.3386042,79296.0,79295.0,1e-08]
[1731250109253,0.7169242,79296.0,79295.0,1e-08]
[1731250109664,0.71767858,79296.0,79295.0,1e-08]
[1731250110068,0.33935858,79296.0,79295.0,1e-08]
[1731250110363,1.23309445,79296.0,79255.0,0.3608]
[1731250110564,0.063024,79260.0,79259.0,0.00076]
[1731250110864,0.063024,79260.0,79255.0,0.3608]
[1731250110865,0.00229785,79260.0,79256.0,0.063026]
[1731250111163,0.00011401,79259.0,79252.0,0.3608]
[1731250111367,0.063027,79255.0,79252.0,0.3608]
[1731250111557,0.08547474,79255.0,79252.0,0.3608]
[1731250111762,0.06551476,79254.0,79252.0,0.3608]
[1731250112764,0.00248676,79253.0,79252.0,0.3608]
[1731250113160,0.00248676,79253.0,79243.0,0.0238313]
[1731250113161,0.38100676,79253.0,79243.0,0.0238313]
[1731250113358,0.063034,79247.0,79242.0,0.3608]
[1731250113561,0.06303,79252.0,79242.0,0.3608]
[1731250113867,0.06303,79252.0,79250.0,0.35831324]
[1731250114066,0.02522997,79253.0,79251.0,0.3608]
[1731250114364,0.12838014,79260.0,79242.0,0.38489179]
[1731250114365,0.02390314,79259.0,79242.0,0.38489179]
[1731250114570,0.00011401,79259.0,79252.0,0.3608]
[1731250114769,0.063029,79253.0,79252.0,0.3608]
[1731250115266,0.12838014,79253.0,79242.0,0.38493179]
[1731250115472,0.063035,79245.0,79242.0,0.38425179]
[1731250116471,0.12838014,79246.0,79242.0,0.38425179]
[1731250116861,0.3608,79252.0,79242.0,0.38425179]
[1731250116862,0.063032,79249.0,79242.0,0.38425179]
[1731250117055,0.063032,79249.0,79242.0,0.3608]
[1731250117476,0.3608,79252.0,79242.0,0.3608]
[1731250117669,0.1296,79251.0,79242.0,0.3608]
[1731250117964,0.063035,79245.0,79242.0,0.3608]
[1731250118867,0.1296,79250.0,79242.0,0.3608]
[1731250119264,0.3608,79252.0,79242.0,0.3608]
[1731250119770,0.12964,79254.0,79242.0,0.3608]
[1731250120269,0.06303,79252.0,79245.0,0.063035]
[1731250120669,0.06303,79252.0,79242.0,0.3608]
[1731250120869,0.12838014,79253.0,79242.0,0.3608]
[1731250121073,0.02308088,79259.0,79249.0,0.3608]
[1731250121377,0.00011401,79259.0,79258.0,0.063025]
[1731250121962,0.00011401,79259.0,79258.0,0.784625]
[1731250122768,0.00011401,79259.0,79258.0,0.063025]
[1731250122968,0.00011401,79259.0,79258.0,0.423825]
[1731250129683,0.06313801,79259.0,79258.0,0.3608]
[1731250130080,0.06303,79251.0,79246.0,0.423834]
[1731250130278,0.12838014,79253.0,79246.0,0.3608]
[1731250130677,0.3608,79256.0,79254.0,0.063027]
[1731250130890,0.3608,79256.0,79244.0,0.21885752]
[1731250130891,0.00011401,79259.0,79257.0,0.063025]
[1731250131280,0.12838014,79258.0,79257.0,0.063025]
[1731250131480,0.00011401,79259.0,79257.0,0.063025]
[1731250131679,0.12838014,79275.0,79258.0,0.3608]
[1731250131878,0.12838014,79275.0,79274.0,0.063012]
[1731250132280,0.00189353,79283.0,79274.0,0.1953]
[1731250132483,0.00189353,79283.0,79282.0,0.063006]
[1731250132681,0.12838014,79299.0,79296.0,0.062994]
[1731250132886,0.08548644,79305.0,79296.0,0.062994]
[1731250133085,0.08548644,79305.0,79296.0,0.553434]
[1731250133495,0.08548644,79305.0,79304.0,0.062988]
[1731250133681,0.00189206,79313.0,79312.0,0.062982]
[1731250133883,0.08548644,79318.0,79317.0,0.062978]
[1731250134181,0.08548644,79318.0,79305.0,0.1981]
[1731250134376,0.08548644,79306.0,79302.0,0.192589]
[1731250134579,0.44628644,79306.0,79297.0,0.1966]
[1731250134783,0.1282768,79298.0,79297.0,0.1966]
[1731250135188,0.1282768,79298.0,79288.0,0.00189169]
[1731250135581,0.3608,79306.0,79297.0,0.3608]
[1731250135782,0.1282768,79305.0,79299.0,0.062992]
[1731250136484,0.062998,79292.0,79288.0,0.00189169]
[1731250136683,0.062999,79290.0,79288.0,0.00189169]
[1731250138095,0.423799,79290.0,79288.0,0.00189169]
[1731250140203,0.423799,79290.0,79280.0,0.3608]
[1731250140204,0.063004,79284.0,79280.0,0.3608]
[1731250140497,0.3608,79290.0,79277.0,0.063009]
[1731250141589,0.3608,79290.0,79271.0,0.3608]
[1731250141796,0.3608,79290.0,79241.0,0.01462737]
[1731250141797,0.3608,79272.0,79241.0,0.01462737]
[1731250142004,0.1282768,79245.0,79241.0,0.07766537]
[1731250142294,0.3608,79252.0,79245.0,0.063035]
[1731250142693,0.1282768,79246.0,79241.0,0.01462737]
[1731250142893,0.3608,79244.0,79241.0,0.01462737]
[1731250143397,0.00015582,79245.0,79241.0,0.01462737]
[1731250145299,0.06319082,79245.0,79241.0,0.01462737]
[1731250145694,0.3608,79244.0,79241.0,0.01462737]
[1731250146401,0.00015582,79245.0,79241.0,0.01462737]
[1731250146598,0.00015582,79245.0,79244.0,0.063036]
[1731250146800,0.00015582,79245.0,79241.0,0.01462737]
[1731250146801,0.063036,79244.0,79241.0,0.01462737]
[1731250146993,0.00015582,79245.0,79241.0,0.01462737]
[1731250147188,0.00015582,79245.0,79241.0,0.07766537]
[1731250147392,0.00015582,79245.0,79242.0,0.063037]
[1731250148900,0.00015582,79245.0,79243.0,0.063036]
[1731250152302,0.38603354,79276.0,79244.0,0.56206]
[1731250152606,0.3608,79276.0,79274.0,0.063012]
[1731250153195,6.261e-05,79275.0,79274.0,0.063012]
[1731250153897,6.1e-07,79275.0,79274.0,0.194692]
[1731250154804,0.126,79362.0,79274.0,0.194692]
[1731250154805,0.1282768,79305.0,79275.0,0.3784]
[1731250154990,0.1282768,79305.0,79303.0,0.062989]
[1731250155190,0.1282768,79305.0,79292.0,0.49244]
[1731250155398,0.1282768,79295.0,79293.0,0.062997]
[1731250155803,0.1282768,79303.0,79293.0,0.062997]
[1731250156001,0.1282768,79303.0,79302.0,0.06299]
[1731250156195,0.1282768,79311.0,79302.0,0.06299]
[1731250157007,0.1282768,79303.0,79302.0,0.06299]
[1731250161707,0.3608,79313.0,79302.0,0.44127]
[1731250161913,0.3608,79313.0,79312.0,0.062982]
[1731250162299,0.3608,79313.0,79303.0,0.1793]
[1731250162498,0.1282768,79308.0,79307.0,0.062986]
[1731250162997,0.3608,79313.0,79312.0,0.062982]
[1731250165404,0.3608,79313.0,79312.0,0.08819886]
[1731250166613,0.00189159,79328.0,79327.0,0.06297]
[1731250167206,0.3608,79336.0,79327.0,0.06297]
[1731250167406,0.3608,79336.0,79335.0,0.062964]
[1731250170209,0.3608,79347.0,79346.0,0.062955]
[1731250170602,0.3608,79357.0,79356.0,0.062947]
[1731250171024,0.02120805,79363.0,79359.0,0.062944]
[1731250171312,0.3608,79364.0,79349.0,0.3608]
[1731250171702,0.3608,79364.0,79362.0,0.062942]
[1731250172600,0.3608,79380.0,79360.0,0.133]
[1731250172802,0.3608,79380.0,79378.0,0.062929]
[1731250173008,0.3608,79388.0,79384.0,0.062924]
[1731250173303,0.3608,79388.0,79375.0,0.13296]
[1731250173502,0.3608,79388.0,79385.0,0.062924]
[1731250173700,0.3608,79388.0,79386.0,0.062922]
[1731250176106,0.3608,79399.0,79377.0,0.3608]
[1731250176608,0.3608,79399.0,79396.0,0.062915]
[1731250177117,0.3608,79399.0,79380.0,0.00188958]